bitfinex/quotes_SOLUSD_20250821
["timestamp","ask_amount","ask_price","bid_price","bid_amount"]
[1755758905738,18.32440893,187.33,187.32,0.03]
[1755758909348,55.56440893,187.33,187.32,0.03]
[1755758909721,54.86440893,187.33,187.32,0.03]
[1755758909942,54.72224736,187.33,187.32,0.72]
[1755758910120,17.48224736,187.33,187.32,0.03]
[1755758910329,54.72224736,187.33,187.32,0.03]
[1755758910726,54.86440893,187.33,187.32,0.03]
[1755758911648,54.86440893,187.33,187.32,0.72]
[1755758912549,54.86440893,187.33,187.32,0.03]
[1755758917026,54.86440893,187.33,187.32,0.72]
[1755758919054,54.86440893,187.33,187.32,0.03]
[1755758919452,54.86440893,187.33,187.32,0.72]
[1755758919629,57.65044252,187.33,187.32,0.72]
[1755758919825,57.65044252,187.33,187.32,0.03]
[1755758922148,57.71044252,187.33,187.32,0.03]
[1755758922739,58.41044252,187.33,187.32,0.03]
[1755758923327,53.96595074,187.33,187.32,0.03]
[1755758923658,57.71044252,187.33,187.32,0.03]
[1755758924159,57.71044252,187.33,187.32,0.72]
[1755758927660,57.71044252,187.33,187.32,0.03]
[1755758929140,58.41044252,187.33,187.32,0.03]
[1755758931438,57.71044252,187.33,187.32,0.03]
[1755758931867,16.72595074,187.33,187.32,0.03]
[1755758932062,57.71044252,187.33,187.32,0.72]
[1755758932372,57.71044252,187.33,187.32,0.03]
[1755758934873,58.40044252,187.33,187.32,0.03]
[1755758936746,61.97868009,187.33,187.32,0.03]
[1755758938057,21.36890071,187.32,187.31,0.03]
[1755758938265,25.63713828,187.32,187.31,0.03]
[1755758939060,25.63713828,187.32,187.28,0.03]
[1755758939265,7.7733067,187.29,187.28,0.03]
[1755758939470,45.0133067,187.29,187.28,0.03]
[1755758939673,45.7033067,187.29,187.28,0.03]
[1755758940053,48.49040402,187.29,187.28,0.03]
[1755758944273,44.05591224,187.29,187.28,0.03]
[1755758945382,6.81591224,187.29,187.28,0.72]
[1755758945551,40.04709732,187.29,187.28,0.72]
[1755758945757,37.26,187.3,187.28,0.72]
[1755758946276,3.74449178,187.3,187.28,0.72]
[1755758946956,3.74449178,187.31,187.28,0.72]
[1755758947164,43.79054371,187.32,187.28,0.72]
[1755758947752,37.26,187.32,187.28,0.72]
[1755758947953,41.00449178,187.32,187.28,0.72]
[1755758948151,37.32,187.33,187.29,3.74449178]
[1755758948368,37.32,187.33,187.3,0.69]
[1755758948575,37.32,187.33,187.3,4.43449178]
[1755758948775,37.32,187.33,187.31,0.69]
[1755758948984,37.32,187.33,187.32,0.69]
[1755758949482,0.06,187.33,187.32,0.69]
[1755758950352,0.06,187.33,187.32,4.43449178]
[1755758951683,0.06,187.33,187.32,0.69]
[1755758955174,0.06,187.33,187.32,4.43449178]
[1755758961783,0.06,187.33,187.32,0.69]
[1755758961992,0.06,187.33,187.32,4.43449178]
[1755758963370,0.06,187.33,187.32,0.69]
[1755758964717,0.06,187.33,187.32,4.43449178]
[1755758965008,0.06,187.33,187.3,4.44449178]
[1755758966619,0.06,187.33,187.31,4.44449178]
[1755758966974,0.06,187.33,187.31,3.74449178]
[1755758967214,0.06,187.33,187.32,0.7]
[1755758968801,0.06,187.33,187.3,0.7]
[1755758969182,0.06,187.33,187.3,4.44449178]
[1755758969690,0.06,187.33,187.31,0.7]
[1755758970209,0.06,187.33,187.3,3.74449178]
[1755758970390,0.06,187.33,187.3,4.44449178]
[1755758972401,1.01432314,187.33,187.3,4.47449178]
[1755758972591,1.01432314,187.33,187.3,0.73]
[1755758973387,0.34432314,187.33,187.3,0.73]
[1755758975608,0.34432314,187.33,187.3,4.47449178]
[1755758977099,0.34432314,187.33,187.3,3.77449178]
[1755758977418,0.34432314,187.33,187.31,0.7]
[1755758978703,0.34432314,187.33,187.3,3.77449178]
[1755758978906,0.34432314,187.33,187.32,0.7]
[1755758979208,0.34432314,187.33,187.3,3.77449178]
[1755758979414,0.06,187.33,187.31,0.7]
[1755758979621,0.06,187.33,187.32,3.74449178]
[1755758980114,0.06,187.33,187.32,4.44449178]
[1755758987231,0.73,187.33,187.3,3.77449178]
[1755758987431,0.73,187.33,187.3,4.47449178]
[1755758988644,0.06,187.33,187.31,4.44449178]
[1755758988840,0.06,187.33,187.32,0.7]
[1755758989019,0.06,187.33,187.31,4.44449178]
[1755758989440,0.06,187.33,187.31,3.74449178]
[1755758990032,0.06,187.33,187.31,4.44449178]
[1755758996344,0.06,187.33,187.31,3.0978571]
[1755758996525,0.06,187.33,187.32,0.66]
[1755758997129,0.06,187.33,187.31,3.0578571]
[1755758999461,0.06,187.33,187.31,2.3978571]
[1755758999666,0.06,187.33,187.32,3.0578571]
[1755759000169,0.06,187.33,187.32,2.3978571]
[1755759000378,0.28432314,187.32,187.3,0.03]
[1755759000665,16.69345111,187.31,187.3,0.03]
[1755759001334,16.97777425,187.31,187.3,0.03]
[1755759004342,18.32985439,187.31,187.3,0.03]
[1755759006148,0.06,187.33,187.3,0.69]
[1755759006346,37.24,187.32,187.31,0.66]
[1755759006667,37.52432314,187.32,187.31,0.66]
[1755759007174,0.06,187.33,187.31,4.40993724]
[1755759007482,0.06,187.33,187.32,3.74993724]
[1755759007837,0.06,187.33,187.32,0.66]
[1755759008066,0.06,187.33,187.32,4.40993724]
[1755759009270,0.06,187.33,187.32,0.66]
[1755759013177,0.06,187.33,187.32,4.40993724]
[1755759013353,0.06,187.33,187.32,0.66]
[1755759013760,0.06,187.33,187.32,4.40993724]
[1755759014257,0.06,187.33,187.32,0.66]
[1755759016061,0.06,187.33,187.32,4.40993724]
[1755759016572,0.06,187.33,187.32,0.66]
[1755759018859,0.06,187.33,187.32,4.40993724]
[1755759021077,0.76,187.33,187.31,26.0]
[1755759021258,0.06,187.33,187.31,26.0]
[1755759021459,0.06,187.33,187.31,0.66]
[1755759022458,0.06,187.33,187.32,0.66]
[1755759024788,0.06,187.33,187.3,0.03]
[1755759024789,0.06,187.33,187.3,4.46993724]
[1755759025167,0.06,187.33,187.3,0.72]
[1755759026590,0.06,187.33,187.31,4.43993724]
[1755759026761,0.06,187.33,187.32,0.69]
[1755759028069,0.06,187.33,187.31,26.69]
[1755759029001,0.06,187.33,187.32,0.69]
[1755759029192,0.06,187.33,187.32,4.43993724]
[1755759029799,0.06,187.33,187.32,30.43993724]
[1755759030788,0.06,187.33,187.32,32.57971824]
[1755759031191,0.06,187.33,187.32,30.43993724]
[1755759032867,0.06,187.33,187.32,4.43993724]
[1755759034992,0.06,187.33,187.31,3.74993724]
[1755759035374,0.06,187.33,187.31,4.43993724]
[1755759035982,0.06,187.33,187.3,0.03]
[1755759036179,0.77,187.33,187.3,0.03]
[1755759036390,0.71,187.32,187.3,0.03]
[1755759036698,3.74993724,187.31,187.3,0.03]
[1755759037084,4.45993724,187.31,187.3,0.03]
[1755759038207,0.77,187.33,187.3,0.03]
[1755759038387,0.06,187.33,187.31,0.69]
[1755759038785,0.06,187.33,187.3,0.03]
[1755759039000,3.80993724,187.33,187.3,0.03]
[1755759039200,4.51993724,187.33,187.3,0.03]
[1755759039397,4.51993724,187.33,187.3,0.72]
[1755759039593,3.80993724,187.33,187.3,0.72]
[1755759039893,0.06,187.33,187.3,0.72]
[1755759040092,0.06,187.33,187.31,0.69]
[1755759040303,0.06,187.33,187.3,0.72]
[1755759040480,0.06,187.33,187.31,0.69]
[1755759042282,0.06,187.33,187.3,26.03]
[1755759042481,0.77,187.33,187.3,26.03]
[1755759042894,3.74993724,187.31,187.3,0.03]
[1755759043302,4.45993724,187.31,187.3,0.03]
[1755759043827,3.74993724,187.31,187.3,0.03]
[1755759044196,3.80993724,187.33,187.3,0.72]
[1755759044914,3.80993724,187.33,187.3,0.03]
[1755759045098,3.80993724,187.33,187.3,0.72]
[1755759045417,0.06,187.33,187.31,0.69]
[1755759045618,0.06,187.33,187.3,3.77993724]
[1755759045920,0.06,187.33,187.32,29.74993724]
[1755759046111,3.80993724,187.33,187.3,0.03]
[1755759046314,3.74993724,187.31,187.3,0.03]
[1755759047196,3.74993724,187.32,187.3,0.03]
[1755759047400,4.45993724,187.32,187.3,0.03]
[1755759050623,4.45993724,187.31,187.3,0.03]
[1755759051227,3.74993724,187.31,187.3,0.03]
[1755759051611,4.45993724,187.31,187.3,0.03]
[1755759052526,3.74993724,187.31,187.3,0.03]
[1755759053330,4.46993724,187.31,187.3,0.03]
[1755759054235,4.75426038,187.31,187.3,0.03]
[1755759055731,3.74993724,187.31,187.3,0.03]
[1755759056240,3.80993724,187.32,187.3,0.71]
[1755759056608,3.80993724,187.32,187.3,0.03]
[1755759057713,4.46993724,187.31,187.3,0.03]
[1755759058616,3.74993724,187.31,187.3,0.03]
[1755759059318,3.74993724,187.31,187.3,0.71]
[1755759059720,3.74993724,187.31,187.3,0.03]
[1755759061453,0.06,187.32,187.3,0.71]
[1755759061454,3.80993724,187.32,187.3,0.71]
[1755759061619,0.06,187.32,187.31,0.68]
[1755759062666,0.06,187.32,187.3,0.03]
[1755759062828,0.06,187.32,187.3,0.71]
[1755759063842,0.06,187.32,187.3,0.03]
[1755759064247,3.80993724,187.32,187.3,0.03]
[1755759064543,4.46993724,187.31,187.3,0.03]
[1755759065139,4.75426038,187.31,187.3,0.03]
[1755759065857,4.03426038,187.31,187.3,0.03]
[1755759066051,4.75426038,187.31,187.3,0.03]
[1755759066359,4.46993724,187.31,187.3,0.03]
[1755759066652,3.74993724,187.31,187.3,0.03]
[1755759066853,4.46993724,187.31,187.3,0.03]
[1755759068863,4.75426038,187.31,187.3,0.03]
[1755759069156,18.34985439,187.31,187.3,0.03]
[1755759069750,4.03426038,187.31,187.3,0.03]
[1755759070263,3.74993724,187.31,187.3,0.03]
[1755759070934,0.06,187.32,187.3,0.71]
[1755759072561,3.80993724,187.32,187.3,26.71]
[1755759072960,3.74993724,187.31,187.3,26.03]
[1755759073153,3.74993724,187.31,187.3,0.03]
[1755759073354,4.46993724,187.31,187.3,0.03]
[1755759078471,4.75426038,187.31,187.3,0.03]
[1755759078645,18.34985439,187.31,187.3,0.03]
[1755759080469,21.13638955,187.31,187.3,0.03]
[1755759082566,24.73831371,187.31,187.3,0.03]
[1755759083649,28.48825095,187.31,187.3,0.03]
[1755759083952,39.87991715,187.29,187.28,0.03]
[1755759084150,13.87991715,187.28,187.26,0.03]
[1755759084353,47.23177855,187.27,187.26,0.03]
[1755759084569,47.92177855,187.27,187.26,0.03]
[1755759087068,39.59559401,187.24,187.23,0.60290191]
[1755759087272,77.21991715,187.24,187.23,0.60290191]
[1755759087474,81.65985439,187.24,187.23,0.60290191]
[1755759089150,80.96985439,187.24,187.23,0.60290191]
[1755759090881,80.96985439,187.24,187.23,1.31290191]
[1755759091088,80.96985439,187.24,187.23,0.60290191]
[1755759091881,81.65985439,187.24,187.23,0.60290191]
[1755759093564,80.96985439,187.24,187.23,0.60290191]
[1755759094398,81.65985439,187.24,187.23,0.60290191]
[1755759099500,80.96985439,187.24,187.23,0.60290191]
[1755759099708,80.96985439,187.24,187.23,1.31290191]
[1755759100498,80.96985439,187.24,187.23,0.60290191]
[1755759100818,83.75756184,187.24,187.23,0.60290191]
[1755759101117,84.44756184,187.24,187.23,0.60290191]
[1755759106240,39.59559401,187.2,187.19,0.03]
[1755759106530,94.67979163,187.2,187.19,0.03]
[1755759106836,95.36979163,187.2,187.19,0.03]
[1755759107335,13.87991715,187.19,187.07,3.74993724]
[1755759107639,13.87991715,187.17,187.12,0.71]
[1755759107803,0.28432314,187.15,187.12,0.71]
[1755759108005,13.59559401,187.13,187.12,0.71]
[1755759108606,17.34553125,187.13,187.12,0.71]
[1755759109028,17.34553125,187.13,187.05,3.74993724]
[1755759109029,0.28432314,187.12,187.05,3.74993724]
[1755759109319,3.74993724,187.09,187.04,3.74993724]
[1755759109502,41.08993724,187.09,187.05,0.71]
[1755759109901,3.74993724,187.09,187.05,0.71]
[1755759110102,3.74993724,187.09,187.05,4.45993724]
[1755759110312,3.74993724,187.09,187.06,0.71]
[1755759110522,41.08993724,187.11,187.06,4.45993724]
[1755759110708,41.08993724,187.11,187.07,0.71]
[1755759110924,3.74993724,187.1,187.07,0.71]
[1755759111716,37.34,187.11,187.07,0.71]
[1755759111717,3.74993724,187.09,187.07,0.71]
[1755759112144,3.74993724,187.09,187.08,0.71]
[1755759112915,4.03426038,187.09,187.08,0.71]
[1755759116046,41.37426038,187.09,187.08,0.71]
[1755759116739,4.03426038,187.09,187.08,0.71]
[1755759117039,0.28432314,187.09,187.08,0.71]
[1755759117250,41.37426038,187.09,187.08,0.71]
[1755759117921,4.03426038,187.09,187.08,0.71]
[1755759119747,37.34,187.1,187.08,0.71]
[1755759120045,3.74993724,187.12,187.08,0.71]
[1755759120346,41.08993724,187.12,187.08,0.71]
[1755759124345,3.74993724,187.11,187.06,3.77993724]
[1755759124524,3.74993724,187.11,187.09,0.72]
[1755759127852,0.28432314,187.13,187.1,0.72]
[1755759128049,4.42993724,187.18,187.12,3.74993724]
[1755759128251,37.32,187.17,187.13,3.74993724]
[1755759128554,37.32,187.17,187.14,0.72]
[1755759130653,2.78820664,187.18,187.15,4.46993724]
[1755759130842,40.12820664,187.18,187.16,0.72]
[1755759131243,40.12820664,187.18,187.15,3.74993724]
[1755759131452,40.12820664,187.18,187.15,4.46993724]
[1755759131838,40.12820664,187.18,187.15,0.72]
[1755759132241,2.78820664,187.18,187.15,0.72]
[1755759132445,40.10820664,187.18,187.15,0.72]
[1755759132739,40.78820664,187.18,187.14,4.46993724]
[1755759133843,0.68,187.17,187.12,0.72]
[1755759134044,0.68,187.17,187.14,3.74993724]
[1755759134961,0.28432314,187.14,187.1,3.74993724]
[1755759135266,0.96432314,187.14,187.1,4.46993724]
[1755759137856,0.96432314,187.14,187.1,0.72]
[1755759138061,0.68,187.13,187.1,4.46993724]
[1755759138769,0.28432314,187.14,187.09,3.74993724]
[1755759138770,0.68,187.12,187.09,3.74993724]
[1755759139070,0.68,187.12,187.09,4.46993724]
[1755759139471,4.71426038,187.14,187.09,4.46993724]
[1755759139666,4.03426038,187.14,187.09,4.46993724]
[1755759139874,4.42993724,187.13,187.08,26.0]
[1755759140056,37.32,187.12,187.08,3.74993724]
[1755759140256,37.32,187.12,187.09,0.72]
[1755759140458,37.32,187.12,187.09,4.46993724]
[1755759142147,37.32,187.12,187.1,0.72]
[1755759143473,4.71426038,187.14,187.11,4.46993724]
[1755759143474,37.32,187.14,187.11,4.46993724]
[1755759143650,37.32,187.14,187.12,4.46993724]
[1755759144469,37.32,187.14,187.12,0.72]
[1755759144675,38.02,187.14,187.11,3.74993724]
[1755759144880,0.7,187.13,187.1,4.46993724]
[1755759146367,0.98432314,187.13,187.08,0.75]
[1755759146564,0.7,187.12,187.08,4.49993724]
[1755759147983,0.7,187.11,187.08,0.03]
[1755759148284,38.04,187.11,187.08,0.03]
[1755759148774,0.7,187.1,187.08,0.03]
[1755759148973,38.04,187.11,187.08,0.03]
[1755759150602,37.34,187.11,187.08,0.03]
[1755759150901,0.7,187.1,187.08,0.03]
[1755759151808,37.34,187.11,187.08,0.03]
[1755759151977,37.34,187.11,187.08,3.77993724]
[1755759152173,14.29559401,187.15,187.1,3.74993724]
[1755759152476,37.32,187.16,187.13,3.74993724]
[1755759152806,38.02,187.16,187.13,4.46993724]
[1755759152991,38.02,187.16,187.13,3.74993724]
[1755759153512,38.02,187.16,187.12,3.74993724]
[1755759153689,38.02,187.16,187.12,4.46993724]
[1755759153886,0.98432314,187.15,187.11,3.74993724]
[1755759154291,0.98432314,187.15,187.11,4.46993724]
[1755759154686,0.7,187.14,187.08,26.75]
[1755759154887,0.7,187.14,187.09,0.72]
[1755759155215,0.7,187.14,187.1,3.74993724]
[1755759155383,0.7,187.14,187.1,4.46993724]
[1755759155817,0.28432314,187.13,187.09,3.74993724]
[1755759156206,0.7,187.12,187.08,3.77993724]
[1755759156386,0.7,187.11,187.08,4.49993724]
[1755759157107,42.09426038,187.13,187.08,4.49993724]
[1755759157411,41.39426038,187.13,187.08,4.49993724]
[1755759157626,0.7,187.12,187.08,0.03]
[1755759157786,17.62985439,187.11,187.08,0.03]
[1755759158218,0.7,187.1,187.08,0.03]
[1755759158691,0.28432314,187.09,187.08,0.03]
[1755759158894,37.68432314,187.09,187.08,0.03]
[1755759159225,38.38432314,187.09,187.08,0.03]
[1755759160286,55.72985439,187.09,187.08,0.03]
[1755759161187,37.68432314,187.09,187.08,0.03]
[1755759162106,0.28432314,187.09,187.08,0.03]
[1755759162305,37.66432314,187.09,187.08,0.03]
[1755759164114,38.36432314,187.09,187.08,0.03]
[1755759164420,55.70985439,187.09,187.08,0.03]
[1755759168213,38.36432314,187.09,187.08,0.03]
[1755759168417,55.40553125,187.09,187.08,0.03]
[1755759168606,55.42553125,187.09,187.08,0.03]
[1755759168808,55.70985439,187.09,187.08,0.03]
[1755759169697,18.32985439,187.09,187.08,0.03]
[1755759170018,55.82985439,187.09,187.08,0.03]
[1755759170413,13.59559401,187.09,187.08,0.03]
[1755759170611,54.84553125,187.09,187.08,0.03]
[1755759170927,55.12985439,187.09,187.08,0.03]
[1755759171317,13.87991715,187.09,187.08,0.03]
[1755759171511,55.12985439,187.09,187.08,0.03]
[1755759172711,17.62985439,187.09,187.08,0.03]
[1755759172914,54.16927426,187.09,187.08,0.75]
[1755759173301,40.57368025,187.09,187.08,0.75]
[1755759173914,40.57368025,187.09,187.08,0.03]
[1755759174521,57.9192115,187.09,187.08,0.03]
[1755759174716,58.6292115,187.09,187.08,0.03]
[1755759184843,16.38495112,187.09,187.08,0.03]
[1755759185011,57.59488836,187.09,187.08,0.03]
[1755759185342,57.8792115,187.09,187.08,0.03]
[1755759187639,58.5892115,187.09,187.08,0.03]
[1755759191059,54.12927426,187.09,187.08,0.03]
[1755759191231,57.8792115,187.09,187.08,0.03]
[1755759193750,54.12927426,187.09,187.08,0.03]
[1755759194251,58.5492115,187.09,187.08,0.03]
[1755759194961,57.8792115,187.09,187.08,0.03]
[1755759198266,58.5892115,187.09,187.08,0.03]
[1755759205144,57.8792115,187.09,187.08,0.03]
[1755759205764,58.5392115,187.09,187.08,0.03]
[1755759208383,57.19457783,187.09,187.08,0.03]
[1755759212480,18.79025469,187.09,187.08,0.71]
[1755759212681,53.76495112,187.09,187.08,0.71]
[1755759212994,54.04927426,187.09,187.08,0.71]
[1755759213294,57.11457783,187.09,187.08,0.03]
[1755759214783,60.71642208,187.09,187.08,0.03]
[1755759217271,57.92706497,187.09,187.08,0.03]
[1755759218311,19.7449034,187.09,187.08,0.71]
[1755759218494,51.09775558,187.09,187.08,0.71]
[1755759218675,53.64522072,187.09,187.08,0.71]
[1755759219078,50.95559401,187.09,187.08,0.71]
[1755759219373,50.97559401,187.09,187.08,0.71]
[1755759219584,51.25991715,187.09,187.08,0.71]
[1755759219978,51.11775558,187.09,187.08,0.71]
[1755759220390,51.25991715,187.09,187.08,0.71]
[1755759221511,54.04907304,187.09,187.08,0.71]
[1755759223006,37.38,187.09,187.08,0.71]
[1755759227825,37.36,187.1,187.08,0.71]
[1755759228403,41.11694997,187.1,187.08,0.71]
[1755759228601,37.36,187.1,187.08,0.71]
[1755759228815,0.28432314,187.09,187.08,0.03]
[1755759233901,18.29686712,187.09,187.08,0.03]
[1755759234640,14.53991715,187.09,187.08,0.03]
[1755759235635,13.87991715,187.09,187.08,0.03]
[1755759236203,14.53991715,187.09,187.08,0.03]
[1755759237728,51.89991715,187.09,187.08,0.03]
[1755759238618,55.65686712,187.09,187.08,0.03]
[1755759239220,51.89991715,187.09,187.08,0.03]
[1755759239429,55.65686712,187.09,187.08,0.03]
[1755759239608,51.23991715,187.09,187.08,0.03]
[1755759239820,13.59559401,187.11,187.08,4.46694997]
[1755759240012,37.36,187.11,187.1,3.75694997]
[1755759240538,37.36,187.11,187.1,3.08342715]
[1755759240715,37.36,187.11,187.1,0.68]
[1755759240913,2.78890415,187.12,187.1,0.68]
[1755759241123,40.16890415,187.12,187.1,0.68]
[1755759241321,37.38,187.12,187.1,0.68]
[1755759241525,37.38,187.13,187.1,3.08342715]
[1755759241820,37.38,187.13,187.11,0.68]
[1755759242028,5.1920426,187.15,187.11,0.68]
[1755759242226,37.38,187.14,187.11,0.68]
[1755759242824,37.38,187.14,187.1,3.75508531]
[1755759243144,37.38,187.14,187.12,0.68]
[1755759243822,41.13508531,187.14,187.1,0.68]
[1755759244153,0.28432314,187.1,187.08,0.03]
[1755759244317,3.75508531,187.09,187.08,0.03]
[1755759244614,18.29500246,187.09,187.08,0.03]
[1755759245426,0.66,187.13,187.08,0.71]
[1755759245609,0.28432314,187.11,187.08,0.03]
[1755759245827,37.68432314,187.11,187.09,0.68]
[1755759248044,37.68432314,187.11,187.1,0.68]
[1755759248239,37.68432314,187.11,187.08,0.03]
[1755759248240,37.68432314,187.11,187.09,0.68]
[1755759248446,41.43940845,187.11,187.09,0.68]
[1755759248844,37.68432314,187.11,187.08,0.03]
[1755759249025,2.78861545,187.15,187.1,4.43508531]
[1755759249231,37.4,187.14,187.11,4.43508531]
[1755759249544,37.4,187.14,187.12,0.68]
[1755759249746,37.68432314,187.14,187.13,0.68]
[1755759250728,0.28432314,187.14,187.13,0.68]
[1755759250929,2.78861545,187.15,187.13,0.68]
[1755759251242,3.07293859,187.15,187.14,0.68]
[1755759251639,2.78861545,187.15,187.14,0.68]
[1755759254356,2.78861545,187.15,187.13,11.975257]
[1755759254841,2.78861545,187.15,187.14,0.68]
[1755759255453,2.78861545,187.15,187.14,16.74899]
[1755759255634,2.78861545,187.15,187.14,0.68]
[1755759256055,37.4,187.16,187.14,0.68]
[1755759257252,37.4,187.16,187.14,8.19017]
[1755759258543,37.4,187.16,187.14,7.51017]
[1755759258951,37.4,187.16,187.12,4.43508531]
[1755759259141,37.4,187.16,187.12,3.75508531]
[1755759259462,37.4,187.16,187.13,8.19017]
[1755759259756,37.4,187.16,187.14,0.68]
[1755759259956,0.28432314,187.16,187.15,0.68]
[1755759260556,13.65559401,187.19,187.15,4.43508531]
[1755759260861,0.28432314,187.18,187.16,4.43508531]
[1755759261048,0.28432314,187.18,187.17,0.68]
[1755759261637,0.28432314,187.18,187.17,14.275594]
[1755759262264,13.65559401,187.19,187.17,14.275594]
[1755759262265,0.06,187.19,187.17,14.275594]
[1755759262467,0.34432314,187.19,187.18,0.68]
[1755759266533,0.34432314,187.19,187.18,3.468044]
[1755759271154,0.34432314,187.19,187.18,7.22312931]
[1755759274173,0.06,187.19,187.18,7.22312931]
[1755759275956,0.06,187.19,187.18,2.788044]
[1755759276268,0.06,187.19,187.18,3.488044]
[1755759276841,0.06,187.19,187.18,7.24312931]
[1755759278363,0.06,187.19,187.18,3.488044]
[1755759278537,0.06,187.19,187.18,7.24312931]
[1755759278868,0.06,187.19,187.18,3.488044]
[1755759279051,55.53284089,187.19,187.18,2.788044]
[1755759279250,0.28432314,187.18,187.14,0.03]
[1755759279455,4.41508531,187.17,187.15,16.067269]
[1755759279762,0.66,187.16,187.15,16.067269]
[1755759279965,0.72,187.19,187.15,16.067269]
[1755759280171,0.06,187.19,187.17,3.75508531]
[1755759280344,0.06,187.19,187.18,0.7]
[1755759281055,0.06,187.19,187.18,4.455085]
[1755759281767,0.06,187.19,187.18,8.21017031]
[1755759286255,4.75940845,187.19,187.18,3.755085]
[1755759286566,4.75940845,187.19,187.14,0.03]
[1755759286759,4.09940845,187.19,187.15,3.755085]
[1755759287069,0.66,187.18,187.15,3.755085]
[1755759287241,4.09940845,187.19,187.15,3.755085]
[1755759287441,0.66,187.18,187.15,3.755085]
[1755759287668,0.66,187.17,187.15,3.755085]
[1755759289045,0.66,187.16,187.15,3.755085]
[1755759290066,0.66,187.16,187.14,0.03]
[1755759290270,0.66,187.17,187.14,4.069409]
[1755759290450,0.66,187.16,187.14,4.069409]
[1755759290774,0.66,187.15,187.14,0.03]
[1755759291752,0.66,187.15,187.14,26.03]
[1755759292471,0.66,187.15,187.14,0.03]
[1755759296694,4.41508531,187.15,187.14,0.03]
[1755759297286,4.69940845,187.15,187.14,0.03]
[1755759297893,14.53991715,187.15,187.14,0.03]
[1755759298101,18.29500246,187.15,187.14,0.03]
[1755759299089,17.63500246,187.15,187.14,0.03]
[1755759299361,3.75508531,187.16,187.14,0.03]
[1755759299672,4.47508531,187.16,187.14,0.03]
[1755759300296,0.28432314,187.16,187.15,0.72]
[1755759300500,14.37559401,187.19,187.15,4.47508531]
[1755759300501,0.06,187.19,187.15,4.47508531]
[1755759300692,0.06,187.19,187.17,3.75508531]
[1755759301002,0.06,187.19,187.18,0.72]
[1755759301170,0.06,187.19,187.18,4.71693756]
[1755759303285,0.06,187.19,187.18,0.72]
[1755759303466,0.06,187.19,187.18,4.7172595]
[1755759304394,0.06,187.19,187.18,8.47234481]
[1755759304902,0.06,187.19,187.18,3.9972595]
[1755759305099,0.78,187.19,187.18,3.9972595]
[1755759308391,0.06,187.19,187.18,3.9972595]
[1755759308884,0.06,187.19,187.18,3.99811685]
[1755759309689,18.13067932,187.19,187.18,3.99811685]
[1755759311120,14.37559401,187.19,187.18,3.99811685]
[1755759311296,55.51067932,187.19,187.18,3.99811685]
[1755759312724,0.28432314,187.18,187.14,4.50508531]
[1755759312905,37.64432314,187.18,187.15,4.71841981]
[1755759313104,37.64432314,187.18,187.16,3.99841914]
[1755759313311,38.36432314,187.18,187.17,3.99841914]
[1755759313511,38.36432314,187.18,187.17,3.99837187]
[1755759313824,55.71500246,187.18,187.17,3.99837187]
[1755759315128,51.95991715,187.18,187.17,3.99837187]
[1755759315311,55.71500246,187.18,187.17,3.99837187]
[1755759315710,39.87991715,187.15,187.14,0.03]
[1755759315907,80.99500246,187.15,187.14,0.03]
[1755759316100,81.71500246,187.15,187.14,0.03]
[1755759316307,85.30678079,187.15,187.14,0.03]